bitfinex-derivatives/quotes_BTCF0:USTF0_20250318
["timestamp","ask_amount","ask_price","bid_price","bid_amount"]
[1742267779380,0.07875353,83291.0,83290.0,0.316612]
[1742267779579,0.04165353,83291.0,83290.0,0.316612]
[1742267780379,0.0600401,83285.0,83281.0,0.11804]
[1742267780580,0.0600418,83282.0,83279.0,0.01233381]
[1742267780886,0.67929853,83281.0,83279.0,0.01233381]
[1742267781481,0.67929853,83281.0,83276.0,0.1200911]
[1742267781682,0.67929853,83281.0,83274.0,0.1200937]
[1742267781979,0.67929853,83281.0,83277.0,0.22706807]
[1742267782492,0.67929853,83281.0,83277.0,0.34715797]
[1742267783813,0.67929853,83281.0,83277.0,0.22706807]
[1742267784109,0.67929853,83281.0,83277.0,0.21517786]
[1742267784315,0.1200893,83278.0,83277.0,0.21517786]
[1742267784808,0.16214283,83278.0,83277.0,0.21517786]
[1742267785014,0.20014283,83278.0,83277.0,0.21517786]
[1742267786215,0.1200951,83274.0,83273.0,0.01219295]
[1742267786405,0.1200994,83271.0,83270.0,0.0375]
[1742267786606,0.12385293,83271.0,83270.0,0.0375]
[1742267786808,0.1201008,83270.0,83269.0,0.00018013]
[1742267787299,0.20035433,83270.0,83269.0,0.00018013]
[1742267787507,0.56115433,83270.0,83269.0,0.01241642]
[1742267787807,0.56115433,83270.0,83269.0,0.00018013]
[1742267788511,0.5574008,83270.0,83269.0,0.00018013]
[1742267789610,0.1201297,83250.0,83245.0,0.28737201]
[1742267789915,0.5992497,83250.0,83245.0,0.28737201]
[1742267790211,0.1201383,83244.0,83243.0,0.0402]
[1742267791009,0.1201383,83244.0,83236.0,0.21517786]
[1742267791010,0.1201484,83237.0,83236.0,0.21517786]
[1742267791209,0.4809484,83237.0,83236.0,0.26769735]
[1742267791921,0.4809484,83237.0,83236.0,0.21517786]
[1742267791922,0.52320409,83237.0,83236.0,0.21517786]
[1742267792415,0.56150409,83237.0,83236.0,0.21517786]
[1742267793021,0.1201499,83236.0,83232.0,0.28737201]
[1742267793209,0.4809542,83233.0,83232.0,0.28737201]
[1742267793504,0.12016,83229.0,83228.0,0.35939918]
[1742267793707,0.12191569,83229.0,83228.0,0.35939918]
[1742267794211,0.11891569,83229.0,83228.0,0.35939918]
[1742267794820,0.1201715,83221.0,83220.0,0.19665313]
[1742267795020,0.4809715,83221.0,83220.0,0.19665313]
[1742267795217,0.48472719,83221.0,83220.0,0.19665313]
[1742267795519,0.48272719,83221.0,83220.0,0.19665313]
[1742267795714,0.51942719,83221.0,83220.0,0.19665313]
[1742267795915,0.55972719,83221.0,83220.0,0.19665313]
[1742267796518,0.56072719,83221.0,83220.0,0.19665313]
[1742267797022,0.56172719,83221.0,83220.0,0.19665313]
[1742267800425,0.48472719,83221.0,83220.0,0.19665313]
[1742267800816,0.12392719,83221.0,83220.0,0.19665313]
[1742267805619,0.16352719,83221.0,83220.0,0.19665313]
[1742267809227,0.00575569,83221.0,83220.0,0.19665313]
[1742267809436,0.50265614,83244.0,83228.0,0.1201614]
[1742267809633,0.11788,83241.0,83228.0,0.1201614]
[1742267809829,0.0757,83237.0,83228.0,0.1201614]
[1742267810422,0.12034024,83229.0,83228.0,0.1201614]
[1742267810621,0.12634024,83229.0,83228.0,0.2322614]
[1742267815535,0.12634024,83229.0,83228.0,0.1121]
[1742267815839,0.16394024,83229.0,83228.0,0.0733]
[1742267816038,0.20394024,83229.0,83228.0,0.0733]
[1742267816537,0.20394024,83229.0,83228.0,0.1934614]
[1742267818440,0.16394024,83229.0,83228.0,0.1934614]
[1742267820941,0.12634024,83229.0,83228.0,0.1934614]
[1742267821245,0.00618024,83229.0,83228.0,0.1934614]
[1742267821439,0.00618024,83229.0,83228.0,0.4834614]
[1742267823038,0.0600721,83240.0,83239.0,0.1201456]
[1742267823245,0.1009721,83240.0,83239.0,0.1201456]
[1742267823637,0.3608,83243.0,83240.0,0.1201441]
[1742267824243,0.3608,83243.0,83240.0,0.1601441]
[1742267824748,0.3608,83243.0,83242.0,0.1201412]
[1742267824947,0.24831314,83247.0,83246.0,0.1201355]
[1742267825145,0.36844714,83247.0,83246.0,0.1201355]
[1742267825643,0.24831314,83247.0,83246.0,0.3601355]
[1742267826345,0.24831314,83247.0,83246.0,0.37215647]
[1742267826744,0.24831314,83247.0,83246.0,0.73295647]
[1742267828448,0.24831314,83247.0,83246.0,0.25202097]
[1742267828651,0.1201456,83239.0,83238.0,0.00018024]
[1742267828845,0.1201701,83224.0,83223.0,0.1802527]
[1742267829352,0.1201701,83224.0,83223.0,0.19217251]
[1742267829947,0.1211701,83224.0,83223.0,0.19217251]
[1742267830144,0.0799,83224.0,83223.0,0.19217251]
[1742267830343,0.001,83224.0,83223.0,0.19217251]
[1742267830656,0.001,83224.0,83223.0,0.45217251]
[1742267831453,0.00018024,83232.0,83231.0,0.1201571]
[1742267831656,0.0600681,83246.0,83244.0,0.1201369]
[1742267831856,0.1967419,83245.0,83244.0,0.1201369]
[1742267832353,0.3608,83249.0,83248.0,0.1201326]
[1742267832655,0.0600663,83248.0,83241.0,0.1201413]
[1742267832859,0.1201427,83242.0,83241.0,0.1902119]
[1742267833052,0.1201427,83241.0,83240.0,0.00018024]
[1742267833242,0.2360427,83241.0,83240.0,0.00018024]
[1742267833442,0.2360427,83241.0,83240.0,0.12032434]
[1742267834155,0.5968427,83241.0,83240.0,0.00018024]
[1742267836659,0.5968427,83241.0,83240.0,0.12032434]
[1742267836959,0.5968427,83241.0,83240.0,0.00018024]
[1742267837263,0.1201788,83216.0,83215.0,0.24943366]
[1742267837459,0.1201788,83216.0,83215.0,0.53943366]
[1742267837759,0.1201788,83216.0,83215.0,0.14158704]
[1742267838064,0.1201788,83216.0,83215.0,0.08149724]
[1742267838065,0.1980788,83216.0,83215.0,0.08149724]
[1742267838362,0.1980788,83216.0,83215.0,0.08249724]
[1742267838661,0.1980788,83216.0,83215.0,0.12239724]
[1742267839466,0.1980788,83216.0,83215.0,0.16009724]
[1742267839958,0.1980788,83216.0,83215.0,0.05102778]
[1742267840261,0.1980788,83216.0,83215.0,0.001]
[1742267841056,0.0600915,83213.0,83207.0,0.00018024]
[1742267841259,0.1202004,83201.0,83200.0,0.0403]
[1742267841455,0.1202062,83198.0,83197.0,0.120205]
[1742267841652,0.1202062,83198.0,83197.0,0.199805]
[1742267842049,0.0411,83202.0,83201.0,0.1202004]
[1742267842250,0.48099,83211.0,83210.0,0.1201874]
[1742267842446,0.3608,83211.0,83210.0,0.1201874]
[1742267842647,0.3608,83211.0,83210.0,0.4001874]
[1742267843062,0.3608,83211.0,83210.0,0.4797874]
[1742267844257,0.480986,83211.0,83210.0,0.4797874]
[1742267844455,0.480986,83211.0,83210.0,0.1997874]
[1742267844663,0.520486,83211.0,83210.0,0.1997874]
[1742267844864,0.601286,83211.0,83210.0,0.1997874]
[1742267846865,0.240486,83211.0,83210.0,0.1997874]
[1742267849070,0.1203,83211.0,83210.0,0.1997874]
[1742267849250,0.238486,83211.0,83210.0,0.1997874]
[1742267849455,0.239486,83211.0,83210.0,0.1997874]
[1742267850969,0.238486,83211.0,83210.0,0.1997874]
[1742267851667,0.239486,83211.0,83210.0,0.1997874]
[1742267854069,0.238486,83211.0,83210.0,0.1997874]
[1742267855069,0.239486,83211.0,83210.0,0.1997874]
[1742267857265,0.238486,83211.0,83210.0,0.1997874]
[1742267857566,0.239486,83211.0,83210.0,0.1997874]
[1742267857871,0.1802763,83213.0,83212.0,0.1201845]
[1742267858071,0.0403,83214.0,83213.0,0.1201831]
[1742267858269,0.22720985,83215.0,83214.0,0.1201817]
[1742267858466,0.22720985,83215.0,83214.0,0.1571817]
[1742267858655,0.22720985,83215.0,83214.0,0.1955817]
[1742267858861,0.26670985,83215.0,83214.0,0.1955817]
[1742267859263,0.1596816,83215.0,83214.0,0.1955817]
[1742267859966,0.1987816,83215.0,83214.0,0.1955817]
[1742267860969,0.1596816,83215.0,83214.0,0.1955817]
[1742267861175,0.1201791,83216.0,83215.0,0.1201802]
[1742267861474,0.1201791,83216.0,83215.0,0.1978802]
[1742267861773,0.1590791,83216.0,83215.0,0.1978802]
[1742267862471,0.1590791,83216.0,83209.0,0.0600942]
[1742267862472,0.6009085,83214.0,83198.0,0.0118994]
[1742267862672,0.1202105,83194.0,83193.0,0.03888024]
[1742267862875,0.2389705,83194.0,83193.0,0.00018024]
[1742267863083,0.0601094,83189.0,83185.0,0.0387]
[1742267863260,0.4810221,83186.0,83185.0,0.0791]
[1742267863466,0.7210221,83186.0,83185.0,0.0791]
[1742267863773,0.5571221,83186.0,83185.0,0.0910154]
[1742267864468,0.5571221,83186.0,83185.0,0.0506154]
[1742267864976,0.5581221,83186.0,83185.0,0.0506154]
[1742267865271,0.5581221,83186.0,83185.0,0.0387]
[1742267866384,0.1202279,83182.0,83181.0,0.0404]
[1742267866574,0.1202279,83182.0,83181.0,0.05231058]
[1742267866878,0.1995279,83182.0,83181.0,0.17253988]
[1742267867671,0.1995279,83182.0,83181.0,0.05231058]
[1742267867866,0.1202293,83181.0,83180.0,0.0371]
[1742267868071,0.060122,83172.0,83171.0,0.120236]
[1742267868284,0.2404963,83172.0,83171.0,0.18938902]
[1742267868472,0.2404963,83172.0,83171.0,0.20169112]
[1742267868673,0.24039925,83172.0,83171.0,0.20169112]
[1742267869481,0.24039925,83172.0,83171.0,0.20469112]
[1742267870682,0.24039925,83172.0,83171.0,0.20769112]
[1742267871070,0.24039925,83172.0,83171.0,0.08745512]
[1742267871380,0.24039925,83172.0,83171.0,0.0183021]
[1742267871880,0.24039925,83172.0,83171.0,0.1385459]
[1742267872079,0.12014895,83172.0,83171.0,0.1385459]
[1742267872274,0.0394,83172.0,83171.0,0.22655702]
[1742267872772,0.1596423,83172.0,83171.0,0.22655702]
[1742267873781,0.1606423,83172.0,83171.0,0.22355702]
[1742267874384,0.1606423,83172.0,83171.0,0.22055702]
[1742267875577,0.2005423,83172.0,83171.0,0.22055702]
[1742267876989,0.2005423,83172.0,83171.0,0.0512021]
[1742267877290,0.2005423,83172.0,83171.0,0.1325459]
[1742267877786,0.2005423,83172.0,83171.0,0.2135459]
[1742267878287,0.2005423,83172.0,83171.0,0.1723459]
[1742267879082,0.2005423,83172.0,83171.0,0.2135459]
[1742267881777,0.0404,83172.0,83171.0,0.2135459]
[1742267881988,0.1606423,83172.0,83171.0,0.2135459]
[1742267882379,0.2019423,83172.0,83171.0,0.2135459]
[1742267882783,0.2019423,83172.0,83171.0,0.0521021]
[1742267883177,0.2019423,83172.0,83171.0,0.0123021]
[1742267883378,0.0601219,83171.0,83169.0,0.2404908]
[1742267883582,0.0601219,83171.0,83170.0,0.083]
[1742267883791,0.0601219,83171.0,83170.0,0.09521084]
[1742267884397,0.0601219,83171.0,83170.0,0.21545604]
[1742267885388,0.001,83171.0,83170.0,0.21545604]
[1742267886189,0.001,83171.0,83170.0,0.29545604]
[1742267886694,0.001,83171.0,83170.0,0.30545604]
[1742267887381,0.1212438,83171.0,83170.0,0.30545604]
[1742267887579,0.1212438,83171.0,83170.0,0.05491084]
[1742267887794,0.1202539,83164.0,83156.0,0.1792924]
[1742267888001,0.1202539,83164.0,83163.0,0.13232397]
[1742267888191,0.3608,83166.0,83165.0,0.1202525]
[1742267888503,0.481051,83166.0,83165.0,0.12943109]
[1742267888888,0.481051,83166.0,83165.0,0.21243109]
[1742267889490,0.3608,83166.0,83165.0,0.21243109]
[1742267889678,0.3608,83166.0,83165.0,0.45243109]
[1742267889879,0.3608,83166.0,83165.0,0.46243109]
[1742267890082,0.3608,83166.0,83165.0,0.58151109]
[1742267890282,0.120251,83166.0,83165.0,0.34151109]
[1742267891295,0.2404937,83172.0,83171.0,0.1202438]
[1742267891693,0.2404937,83172.0,83171.0,0.2415438]
[1742267892289,0.0601214,83172.0,83171.0,0.2415438]
[1742267892484,0.10696946,83173.0,83172.0,0.1202423]
[1742267892691,0.10696946,83173.0,83172.0,0.2040423]
[1742267893195,0.22721036,83173.0,83172.0,0.2040423]
[1742267894300,0.10696946,83173.0,83172.0,0.2040423]
[1742267894489,0.22721036,83173.0,83172.0,0.2040423]
[1742267894986,0.22821036,83173.0,83172.0,0.2040423]
[1742267895187,0.10796946,83173.0,83172.0,0.2040423]
[1742267895396,0.001,83173.0,83172.0,0.2040423]
[1742267895582,0.1212409,83173.0,83172.0,0.2040423]
[1742267896689,0.1598409,83173.0,83172.0,0.2040423]
[1742267897089,0.0396,83173.0,83172.0,0.2040423]
[1742267897894,0.001,83173.0,83172.0,0.2040423]
[1742267899387,0.001,83173.0,83172.0,0.1630423]
[1742267899388,0.1212409,83173.0,83172.0,0.1630423]
[1742267899587,0.34182131,83173.0,83172.0,0.1202423]
[1742267899783,0.0601219,83171.0,83167.0,0.1015244]
[1742267899987,0.120251,83166.0,83165.0,0.12943109]
[1742267900486,0.203451,83166.0,83165.0,0.12943109]
[1742267901290,0.203451,83166.0,83165.0,0.16853109]
[1742267901489,0.203451,83166.0,83165.0,0.20883109]
[1742267902198,0.203451,83166.0,83165.0,0.00917859]
[1742267902398,0.0601263,83165.0,83163.0,0.01225292]
[1742267902605,0.1202539,83164.0,83163.0,0.01225292]
[1742267902789,0.2003539,83164.0,83163.0,0.01225292]
[1742267903191,0.20411324,83164.0,83163.0,0.01225292]
[1742267903395,0.20411324,83164.0,83163.0,0.13250832]
[1742267903793,0.08385934,83164.0,83163.0,0.13250832]
[1742267903998,0.08385934,83164.0,83163.0,0.21190832]
[1742267904390,0.20411324,83164.0,83163.0,0.21190832]
[1742267904594,0.08385934,83164.0,83163.0,0.21190832]
[1742267905005,0.08385934,83164.0,83163.0,0.22104931]
[1742267905703,0.05846311,83166.0,83165.0,0.1202525]
[1742267905905,0.05846311,83166.0,83165.0,0.3602525]
[1742267906099,0.05846311,83166.0,83165.0,0.4426525]
[1742267906907,0.1614486,83168.0,83167.0,0.1202496]
[1742267907097,0.2020486,83168.0,83167.0,0.3602496]
[1742267907290,0.2020486,83168.0,83167.0,0.4431496]
[1742267907806,0.0818,83168.0,83167.0,0.5625096]
[1742267908206,0.0818,83168.0,83167.0,0.5626296]
[1742267908504,0.0828,83168.0,83167.0,0.5626296]
[1742267908802,0.001,83168.0,83167.0,0.9234296]
[1742267909005,0.2143212,83171.0,83170.0,0.1202452]
[1742267909306,0.2143212,83171.0,83170.0,0.4102452]
[1742267909497,0.2143212,83171.0,83170.0,0.4931452]
[1742267909698,0.0819,83179.0,83170.0,0.4931452]
[1742267909699,0.17899234,83174.0,83173.0,0.1202409]
[1742267909999,0.17899234,83174.0,83173.0,0.3642209]
[1742267911594,0.17899234,83174.0,83173.0,0.8842209]
[1742267911796,0.00018024,83180.0,83179.0,0.1202322]
[1742267912009,0.00018024,83180.0,83179.0,0.4002322]
[1742267912208,0.00018024,83180.0,83179.0,0.4421322]
[1742267912399,0.00018024,83180.0,83179.0,0.4836322]
[1742267913410,0.2143212,83185.0,83184.0,0.120225]
[1742267913706,0.2143212,83185.0,83184.0,0.548605]
[1742267914199,0.2143212,83185.0,83184.0,0.288605]
[1742267914398,0.3345447,83185.0,83184.0,0.249505]
[1742267914603,0.3345447,83185.0,83184.0,0.130225]
[1742267914802,0.4168447,83185.0,83184.0,0.130225]
[1742267915900,0.2569212,83185.0,83184.0,0.390225]
[1742267916102,0.2569212,83185.0,83184.0,0.429325]
[1742267917509,0.0426,83185.0,83184.0,0.429325]
[1742267918509,0.0845,83185.0,83184.0,0.469725]
[1742267924514,0.2047235,83185.0,83184.0,0.469725]
[1742267924711,0.0845,83185.0,83184.0,0.469725]
[1742267926603,0.0845,83185.0,83184.0,0.508625]
[1742267930711,0.0426,83185.0,83184.0,0.508625]
[1742267932018,0.08357822,83189.0,83188.0,0.1202192]
[1742267932215,0.12718195,83193.0,83192.0,0.1202134]
[1742267932415,0.12718195,83193.0,83192.0,0.4002134]
[1742267932617,0.12718195,83193.0,83192.0,0.4848134]
[1742267933517,0.12718195,83194.0,83193.0,0.120212]
[1742267933818,0.12718195,83194.0,83193.0,0.370212]
[1742267934008,0.12718195,83194.0,83193.0,0.454812]
[1742267938025,0.0396,83196.0,83193.0,0.454812]
[1742267938026,0.0396,83196.0,83195.0,0.1202091]
[1742267938219,0.0396,83196.0,83195.0,0.4983291]
[1742267938418,0.0396,83196.0,83195.0,0.6259291]
[1742267938817,0.0396,83196.0,83195.0,0.1202091]
[1742267939013,0.2003077,83196.0,83195.0,0.1202091]
[1742267939419,0.2426077,83196.0,83195.0,0.13214646]
[1742267940921,0.0819,83196.0,83195.0,0.13214646]
[1742267941123,0.0819,83196.0,83195.0,0.21844646]
[1742267941918,0.0819,83196.0,83195.0,0.47844646]
[1742267943028,0.0819,83196.0,83195.0,0.43474646]
[1742267943620,0.0819,83196.0,83195.0,0.47844646]
[1742267944020,0.0819,83196.0,83195.0,0.59656646]
[1742267948936,0.00018035,83201.0,83200.0,0.1202019]
[1742267949129,0.00018035,83201.0,83200.0,0.3702019]
[1742267949321,0.00018035,83201.0,83200.0,0.4549019]
[1742267949522,0.08438035,83201.0,83200.0,0.4549019]
[1742267951420,0.08438035,83201.0,83200.0,0.4129019]
[1742267951634,0.08438035,83201.0,83200.0,0.3702019]
[1742267952037,0.08438035,83201.0,83200.0,0.4107019]
[1742267953020,0.08438035,83201.0,83200.0,0.3702019]
[1742267953733,0.08438035,83201.0,83200.0,0.4112019]
[1742267954435,0.08438035,83201.0,83200.0,0.4525019]
[1742267956736,0.04298035,83201.0,83200.0,0.4725019]
[1742267956933,0.04298035,83201.0,83200.0,0.4825019]
[1742267957429,5e-08,83201.0,83200.0,1.0833019]
[1742267957740,0.14846947,83220.0,83219.0,0.1201744]
[1742267957926,0.14846947,83220.0,83219.0,0.7180944]
[1742267958131,0.14846947,83220.0,83219.0,0.4980944]
[1742267958336,0.14846947,83220.0,83219.0,0.5858944]
[1742267959037,0.00018035,83228.0,83227.0,0.1201629]
[1742267959241,0.0414,83230.0,83229.0,0.12016]
[1742267959539,0.24831314,83238.0,83234.0,0.1201528]
[1742267959740,0.24831314,83238.0,83237.0,0.1201484]
[1742267959949,0.24831314,83238.0,83237.0,0.3901484]
[1742267960135,0.24831314,83238.0,83237.0,0.5137484]
[1742267961230,0.36846014,83238.0,83237.0,0.4729484]
[1742267961434,0.1201457,83239.0,83238.0,0.120147]
[1742267961632,0.1201457,83239.0,83238.0,0.48523574]
[1742267961837,0.1201457,83239.0,83238.0,0.25059574]
[1742267962543,0.1201457,83239.0,83238.0,0.29289574]
[1742267962744,0.2040457,83239.0,83238.0,0.33639574]
[1742267963242,0.2040457,83239.0,83238.0,0.29289574]
[1742267965735,0.2040457,83239.0,83238.0,0.33369574]
[1742267965940,0.0839,83239.0,83238.0,0.33369574]
[1742267966140,0.2040456,83239.0,83238.0,0.33369574]
[1742267969557,0.0839,83239.0,83238.0,0.33369574]
[1742267971542,0.2040456,83239.0,83238.0,0.33389574]
[1742267972050,0.0839,83239.0,83238.0,0.33389574]
[1742267972934,0.044,83239.0,83238.0,0.33389574]
[1742267973735,0.00018023,83246.0,83238.0,0.74382174]
[1742267973951,0.3608,83254.0,83253.0,0.1201254]
[1742267974141,0.1801822,83257.0,83256.0,0.120121]
[1742267974441,0.0600598,83257.0,83256.0,0.120121]
[1742267974947,0.1412598,83257.0,83256.0,0.202821]
[1742267975741,0.0812,83257.0,83256.0,0.202821]
[1742267976143,0.0812,83257.0,83256.0,0.21472386]
[1742267976352,0.0812,83257.0,83256.0,0.57232386]
[1742267976542,0.0405,83257.0,83256.0,0.57232386]
[1742267977552,0.3608,83262.0,83256.0,0.57232386]
[1742267977553,0.3608,83262.0,83261.0,0.1201138]
[1742267977944,0.3608,83262.0,83261.0,0.2025138]
[1742267978246,0.3608,83262.0,83261.0,0.4325138]
[1742267978448,0.4809124,83262.0,83261.0,0.4325138]
[1742267979948,0.5675124,83262.0,83261.0,0.4325138]
[1742267981056,0.1801787,83258.0,83257.0,0.1201184]
[1742267981249,0.1801787,83258.0,83257.0,0.2057184]
[1742267981941,0.1004591,83258.0,83257.0,0.2057184]
[1742267982242,0.0404,83258.0,83257.0,0.3233584]
[1742267982441,0.1605181,83258.0,83257.0,0.3233584]
[1742267982654,0.2040181,83258.0,83257.0,0.2057184]
[1742267982857,0.0839,83258.0,83257.0,0.2057184]
[1742267983053,0.2040181,83258.0,83257.0,0.2057184]
[1742267986657,0.2040181,83258.0,83257.0,0.3232784]
[1742267986853,0.1201196,83257.0,83256.0,0.13202346]
[1742267987347,0.1603196,83257.0,83256.0,0.13202346]
[1742267987859,0.1603196,83257.0,83256.0,0.17562346]
[1742267988059,0.2032196,83257.0,83256.0,0.21732346]
[1742267988457,0.2032196,83257.0,83256.0,0.01190286]
[1742267988652,0.1801916,83253.0,83252.0,0.120121]
[1742267988973,0.5409916,83253.0,83252.0,0.205421]
[1742267989161,0.1801916,83253.0,83252.0,0.21737209]
[1742267989363,0.5409916,83253.0,83252.0,0.21737209]
[1742267989560,0.1801916,83253.0,83252.0,0.21737209]
[1742267990754,0.0600634,83253.0,83252.0,0.21737209]
[1742267991556,0.1466634,83253.0,83252.0,0.21737209]
[1742267994063,0.0431,83253.0,83252.0,0.21737209]
[1742267994267,0.3608,83254.0,83253.0,0.1201254]
[1742267994466,0.3608,83270.0,83260.0,0.0600575]
[1742267994652,0.0417,83269.0,83264.0,0.1201095]
[1742267994857,0.0855,83269.0,83264.0,0.1201095]
[1742267995058,0.1201073,83266.0,83264.0,0.2042095]
[1742267995458,0.0438,83269.0,83264.0,0.2042095]
[1742267995661,0.0855,83269.0,83264.0,0.2042095]
[1742267996267,0.1201056,83267.0,83264.0,0.2042095]
[1742267996453,0.0436,83266.0,83264.0,0.21308946]
[1742267996657,0.204307,83266.0,83264.0,0.21308946]
[1742267997165,0.16388756,83265.0,83264.0,0.21308946]
[1742267997467,0.20448756,83265.0,83264.0,0.21308946]
[1742267997865,0.08437956,83265.0,83264.0,0.21308946]
[1742267998569,0.00017956,83265.0,83264.0,0.21308946]
[1742268001869,0.12028756,83265.0,83264.0,0.21308946]
[1742268002368,0.00017956,83265.0,83264.0,0.21308946]
[1742268002574,0.04337956,83265.0,83264.0,0.21308946]
[1742268004167,0.20378756,83265.0,83264.0,0.21308946]
[1742268005865,0.56458756,83265.0,83264.0,0.04977996]
[1742268006059,0.56458756,83265.0,83264.0,0.12898946]
[1742268006268,0.56458756,83265.0,83264.0,0.1201095]
[1742268006477,0.56458756,83265.0,83264.0,0.2072095]
[1742268007864,0.44447956,83265.0,83264.0,0.2072095]
[1742268008069,0.44447956,83265.0,83264.0,0.21634141]
[1742268008264,0.36097956,83265.0,83264.0,0.45634141]
[1742268008464,0.00017956,83265.0,83264.0,0.45634141]
[1742268009474,0.12028756,83265.0,83264.0,0.21634141]
[1742268009978,0.20478756,83265.0,83264.0,0.21634141]
[1742268010376,0.04347956,83265.0,83264.0,0.21634141]
[1742268011069,0.16358756,83265.0,83264.0,0.21634141]
[1742268011573,0.12028756,83265.0,83264.0,0.21634141]
[1742268011773,0.00017956,83265.0,83264.0,0.21634141]
[1742268013566,0.00017956,83265.0,83264.0,0.44634141]
[1742268013762,0.3608,83290.0,83289.0,0.1200734]
[1742268013969,0.04,83290.0,83289.0,0.1200734]
[1742268014476,0.04,83290.0,83289.0,0.2045734]
[1742268014666,0.24831314,83296.0,83295.0,0.1200648]
[1742268015076,0.24831314,83296.0,83295.0,0.2073648]
[1742268015281,0.36837644,83296.0,83295.0,0.2073648]
[1742268015479,0.33431314,83296.0,83295.0,0.2073648]
[1742268015679,0.33431314,83296.0,83295.0,0.21967901]
[1742268016373,0.45437644,83296.0,83295.0,0.21967901]
[1742268016575,0.45437644,83296.0,83295.0,0.17557901]
[1742268016971,0.0600331,83294.0,83290.0,0.0600357]
[1742268017173,0.1801051,83292.0,83291.0,0.1200692]
[1742268017474,0.1276,83293.0,83292.0,0.1200691]
[1742268017670,0.1276,83293.0,83292.0,0.1612691]
[1742268017872,0.1276,83293.0,83292.0,0.2010691]
[1742268018071,0.2476677,83293.0,83292.0,0.2010691]
[1742268018377,0.1200749,83288.0,83287.0,0.00018009]
[1742268018888,0.2046749,83288.0,83287.0,0.03998009]
[1742268019178,0.2046749,83288.0,83287.0,0.08118009]
[1742268019370,0.2046749,83288.0,83287.0,0.20125569]
[1742268020178,0.2046749,83288.0,83287.0,0.21347359]
[1742268021569,0.2046749,83288.0,83287.0,0.00018009]
[1742268021880,0.1801419,83278.0,83277.0,0.1801268]
[1742268022080,0.0600464,83278.0,83277.0,0.1801268]
[1742268022280,0.5382029,83281.0,83277.0,0.1801268]
[1742268022281,0.5389229,83281.0,83280.0,0.1200864]
[1742268022484,0.5382029,83281.0,83280.0,0.1200864]
[1742268022681,0.3608,83281.0,83280.0,0.2008864]
[1742268022985,0.3608,83281.0,83280.0,0.4708864]
[1742268023175,0.1200758,83288.0,83287.0,0.0600381]
[1742268023371,0.00017965,83289.0,83288.0,0.1200749]
[1742268023576,0.00017965,83289.0,83288.0,0.2048749]
[1742268024279,0.12025305,83289.0,83288.0,0.2048749]
[1742268026080,0.12025305,83289.0,83288.0,0.0421]
[1742268026277,0.16095305,83289.0,83288.0,0.0421]
[1742268026580,0.16095305,83289.0,83288.0,0.1621749]
[1742268027779,0.16105104,83289.0,83288.0,0.1621749]
[1742268027975,0.1200778,83286.0,83285.0,0.1200783]
[1742268028181,0.1200821,83283.0,83282.0,0.2206239]
[1742268028581,0.1200821,83283.0,83282.0,0.0405]
[1742268028777,0.1200821,83283.0,83282.0,0.1605835]
[1742268029181,0.1200821,83283.0,83282.0,0.1200835]
[1742268029783,0.1200821,83283.0,83282.0,0.2038835]
[1742268030987,0.1200821,83283.0,83282.0,0.0838]
[1742268031192,0.1200907,83277.0,83275.0,0.11736]
[1742268031387,0.1200907,83277.0,83276.0,0.0838]
[1742268031590,0.1200907,83277.0,83276.0,0.2038922]
[1742268032780,0.0600447,83278.0,83277.0,0.1200907]
[1742268032983,0.0600447,83278.0,83277.0,0.2025907]
[1742268033285,0.4808835,83283.0,83282.0,0.1200835]
[1742268033490,0.1200835,83283.0,83282.0,0.1200835]
[1742268033691,0.1200835,83283.0,83282.0,0.2025835]
[1742268034193,0.4808835,83283.0,83282.0,0.2025835]
[1742268037699,0.3608,83283.0,83282.0,0.2025835]
[1742268037896,0.3608,83283.0,83282.0,0.4525835]
[1742268038202,0.00027764,83289.0,83288.0,0.1200749]
[1742268038498,0.00027764,83289.0,83288.0,0.3600749]
[1742268038700,0.12035104,83289.0,83288.0,0.4839749]
[1742268041104,0.00027764,83289.0,83288.0,0.4839749]
[1742268041300,0.1600292,83300.0,83299.0,0.120059]
[1742268041301,0.1,83300.0,83299.0,0.120059]
[1742268041506,0.1,83300.0,83299.0,0.390059]
[1742268042103,0.1,83300.0,83299.0,0.517759]
[1742268045002,0.0563077,83300.0,83299.0,0.747759]
[1742268045191,0.0563077,83300.0,83299.0,0.517759]
[1742268045503,0.0563077,83300.0,83299.0,0.52963618]
[1742268046091,0.1763653,83300.0,83299.0,0.64699618]
[1742268046298,0.1763653,83300.0,83299.0,0.37699618]
[1742268046490,0.2596653,83300.0,83299.0,0.37699618]
[1742268047207,0.26341823,83300.0,83299.0,0.37699618]
[1742268047704,0.14336063,83300.0,83299.0,0.37699618]
[1742268047899,0.06006063,83300.0,83299.0,0.37699618]
[1742268048098,0.06006063,83300.0,83299.0,0.64699618]
[1742268048306,0.06006063,83300.0,83299.0,0.90699618]
[1742268048499,0.06006063,83300.0,83299.0,0.64699618]
[1742268048903,0.0563077,83300.0,83299.0,0.64699618]
[1742268050612,0.0563077,83300.0,83299.0,0.90699618]
[1742268059005,0.0563077,83300.0,83299.0,0.90899618]
[1742268059401,0.4446,83311.0,83310.0,0.1200432]
[1742268059603,0.4021,83311.0,83310.0,0.3700432]
[1742268059802,0.4021,83311.0,83310.0,0.4956432]
[1742268060704,0.33172264,83329.0,83320.0,0.1200288]
[1742268061003,0.1200254,83323.0,83320.0,0.4000288]
[1742268061211,0.084,83328.0,83320.0,0.4838288]
[1742268061515,0.0408,83322.0,83320.0,0.4433288]
[1742268061704,0.4808273,83321.0,83320.0,0.4433288]
[1742268061904,0.405,83321.0,83320.0,0.1633288]
[1742268062110,0.5250273,83321.0,83320.0,0.12894168]
[1742268062415,0.5658273,83321.0,83320.0,0.00891288]
[1742268062710,0.5658273,83321.0,83320.0,0.1200288]
[1742268064028,0.1200316,83318.0,83317.0,0.060016]
[1742268064322,0.1200331,83317.0,83316.0,0.00917857]
[1742268064515,0.2452331,83317.0,83316.0,0.1200345]
[1742268065320,0.1200345,83316.0,83315.0,0.1200349]
[1742268065726,0.2026345,83316.0,83315.0,0.1200349]
[1742268067117,0.0826,83316.0,83315.0,0.39896039]
[1742268067317,0.0826,83316.0,83315.0,0.52526039]
[1742268067518,0.2026345,83316.0,83315.0,0.12896039]
[1742268067919,0.2466345,83316.0,83315.0,0.12896039]
[1742268077723,0.0600267,83305.0,83301.0,0.39599416]
[1742268078028,0.1200547,83302.0,83301.0,0.21592036]
[1742268078418,0.2092547,83302.0,83301.0,0.21592036]
[1742268078819,0.0446,83302.0,83301.0,0.34788998]
[1742268079035,0.00018009,83310.0,83309.0,0.0600222]
[1742268079328,0.08938009,83310.0,83309.0,0.0600222]
[1742268079836,0.1200547,83302.0,83301.0,0.22783388]
[1742268080131,0.1200547,83302.0,83301.0,0.33897646]
[1742268080333,0.2092547,83302.0,83301.0,0.33897646]